bitfinex/quotes_BTCUSD_20250422
["timestamp","ask_amount","ask_price","bid_price","bid_amount"]
[1745360654061,0.0008502,92876.0,92870.0,0.33089441]
[1745360654422,1e-08,92871.0,92870.0,0.34557087]
[1745360654821,1e-08,92871.0,92870.0,0.3585713]
[1745360655149,1e-08,92871.0,92870.0,0.34503045]
[1745360655502,1e-08,92871.0,92870.0,0.34703045]
[1745360655713,1e-08,92871.0,92870.0,0.34403045]
[1745360656095,0.00100001,92871.0,92870.0,0.34803045]
[1745360656521,0.00100001,92871.0,92870.0,0.3625713]
[1745360656938,0.0008502,92876.0,92875.0,0.2153432]
[1745360657143,1e-08,92876.0,92875.0,0.3381871]
[1745360657514,0.00081041,92880.0,92879.0,0.21533392]
[1745360657682,0.00081041,92880.0,92879.0,0.32578967]
[1745360657879,0.0008504,92881.0,92880.0,0.01454085]
[1745360658252,0.0496502,92914.0,92908.0,0.01076333]
[1745360658481,0.0496502,92914.0,92911.0,0.01076298]
[1745360658695,0.0008502,92914.0,92911.0,0.22602077]
[1745360659062,0.0008502,92914.0,92913.0,0.21525513]
[1745360659589,0.00131939,92914.0,92913.0,0.21525513]
[1745360659993,0.00131939,92914.0,92913.0,0.33692552]
[1745360661161,0.00231939,92914.0,92913.0,0.33692552]
[1745360661959,0.00231939,92914.0,92913.0,0.33792552]
[1745360662969,0.00231939,92914.0,92913.0,0.22962247]
[1745360664208,0.00231939,92914.0,92913.0,0.01436734]
[1745360664676,0.09931939,92914.0,92913.0,0.01436734]
[1745360664894,0.09931939,92914.0,92913.0,0.001]
[1745360665894,0.09931939,92914.0,92906.0,0.01076356]
[1745360666003,0.09931939,92914.0,92905.0,0.01076368]
[1745360666295,0.10231939,92914.0,92907.0,0.01076345]
[1745360666524,0.10231939,92914.0,92905.0,0.01076368]
[1745360666742,0.10831939,92914.0,92905.0,0.01076368]
[1745360666954,0.10831939,92914.0,92903.0,0.01076391]
[1745360667164,0.10231939,92914.0,92905.0,0.01076368]
[1745360667384,0.10631939,92914.0,92904.0,0.01076379]
[1745360667608,0.10631939,92914.0,92903.0,0.01076391]
[1745360667609,0.10631939,92914.0,92895.0,0.01076484]
[1745360667833,0.10830305,92913.0,92881.0,0.01076646]
[1745360668042,0.10830305,92913.0,92889.0,0.01341401]
[1745360668265,0.01076356,92906.0,92873.0,0.21534573]
[1745360668476,0.27564927,92910.0,92853.0,0.08596466]
[1745360668477,0.0496,92896.0,92853.0,0.08596466]
[1745360668693,0.10830305,92895.0,92867.0,0.01076808]
[1745360669118,0.11906789,92895.0,92866.0,0.0107682]
[1745360669329,0.01076565,92888.0,92857.0,0.01076924]
[1745360669550,0.010766,92885.0,92853.0,0.09673437]
[1745360669777,0.27166305,92884.0,92860.0,0.01076889]
[1745360670205,0.01076623,92883.0,92856.0,0.01076936]
[1745360670417,0.10830305,92882.0,92858.0,0.01308311]
[1745360670635,0.10830305,92882.0,92860.0,0.01076889]
[1745360671085,0.10877195,92882.0,92859.0,0.01076901]
[1745360671294,0.10877195,92882.0,92867.0,0.002]
[1745360671512,0.10877195,92882.0,92860.0,0.01076889]
[1745360671725,0.10877195,92882.0,92860.0,0.002]
[1745360672153,0.01076692,92877.0,92853.0,0.001]
[1745360672372,0.10830305,92876.0,92859.0,0.003]
[1745360672579,0.10830305,92876.0,92860.0,0.01076889]
[1745360672799,0.0482,92881.0,92862.0,0.01076866]
[1745360673015,0.10830305,92880.0,92861.0,0.01076878]
[1745360673512,0.16336,92879.0,92861.0,0.22614378]
[1745360673709,0.16336,92879.0,92860.0,0.01376889]
[1745360673710,0.16336,92879.0,92871.0,0.01076762]
[1745360674141,0.16336,92879.0,92869.0,0.01076785]
[1745360674298,0.16336,92879.0,92868.0,0.01076797]
[1745360674500,0.16336,92879.0,92871.0,0.01076762]
[1745360674677,0.16436,92879.0,92870.0,0.01076773]
[1745360675089,0.16436,92879.0,92869.0,0.01076785]
[1745360675468,0.16436,92879.0,92872.0,0.0107675]
[1745360675766,0.16436,92879.0,92877.0,0.2153368]
[1745360675967,0.0004689,92882.0,92876.0,0.01076704]
[1745360676170,0.0004689,92882.0,92880.0,0.21533161]
[1745360676722,0.0004689,92882.0,92880.0,0.22883968]
[1745360676922,0.0004689,92882.0,92881.0,0.00723767]
[1745360677309,0.0004689,92882.0,92881.0,0.00939061]
[1745360677515,0.0004689,92882.0,92881.0,0.11554072]
[1745360677719,0.0054689,92882.0,92881.0,0.11554072]
[1745360678385,0.0024689,92882.0,92881.0,0.11554072]
[1745360678536,0.0004689,92882.0,92881.0,0.11554072]
[1745360678884,0.0014689,92882.0,92881.0,0.12054072]
[1745360679278,0.00075859,92882.0,92881.0,0.12054072]
[1745360679422,0.00075859,92882.0,92880.0,0.1493804]
[1745360679623,0.00381102,92882.0,92881.0,0.10830305]
[1745360680034,0.0466,92899.0,92896.0,0.01076472]
[1745360680240,0.0466,92899.0,92896.0,0.01090033]
[1745360680638,0.0466,92899.0,92897.0,0.2152922]
[1745360681379,0.0486,92899.0,92897.0,0.2152922]
[1745360681821,0.15690305,92899.0,92896.0,0.00013561]
[1745360682022,0.15690305,92899.0,92896.0,0.01090033]
[1745360682223,0.002,92899.0,92897.0,0.2152922]
[1745360682595,0.40028,92907.0,92906.0,0.21527134]
[1745360683157,0.40028,92907.0,92903.0,0.2152783]
[1745360683282,0.40028,92907.0,92905.0,0.21527354]
[1745360683685,0.40528,92907.0,92905.0,0.21527354]
[1745360684098,0.35988,92907.0,92905.0,0.21527354]
[1745360684301,0.35788,92907.0,92906.0,0.001]
[1745360684503,0.002,92907.0,92905.0,0.21527354]
[1745360684712,0.003,92907.0,92905.0,0.21742616]
[1745360685699,0.001,92907.0,92905.0,0.21742616]
[1745360685900,0.001,92907.0,92906.0,0.10830305]
[1745360686101,0.003,92907.0,92906.0,0.10830305]
[1745360686527,0.003,92907.0,92906.0,0.10930305]
[1745360686732,0.0008486,92919.0,92918.0,0.21524354]
[1745360686931,0.0008486,92919.0,92918.0,0.21739551]
[1745360687703,0.0008486,92919.0,92918.0,0.21524354]
[1745360687855,0.0008486,92919.0,92918.0,0.21739553]
[1745360688022,0.0008486,92919.0,92918.0,0.21939553]
[1745360688220,0.0018486,92919.0,92918.0,0.32554659]
[1745360688661,0.0008502,92924.0,92923.0,0.21523196]
[1745360688864,0.0008488,92937.0,92923.0,0.21523196]
[1745360688865,0.0008488,92937.0,92936.0,0.21520185]
[1745360689131,0.0008488,92937.0,92936.0,0.3256566]
[1745360689318,0.0008488,92937.0,92936.0,0.3235049]
[1745360689529,0.0008488,92937.0,92936.0,0.33804575]
[1745360689774,0.0462502,92964.0,92951.0,0.21516713]
[1745360690123,0.0462502,92964.0,92951.0,0.21530274]
[1745360690332,0.0004244,92962.0,92951.0,0.21530274]
[1745360690771,0.0004244,92962.0,92951.0,0.00013561]
[1745360690978,0.0004244,92962.0,92951.0,0.21530274]
[1745360691204,0.0004244,92962.0,92951.0,0.21830274]
[1745360691960,0.0004244,92962.0,92951.0,0.00013561]
[1745360692162,0.10915265,92952.0,92951.0,0.00413561]
[1745360692474,0.10915265,92952.0,92951.0,0.00213561]
[1745360692900,0.20225265,92952.0,92951.0,0.00413561]
[1745360693262,0.20225265,92952.0,92951.0,0.00013561]
[1745360693811,0.20925265,92952.0,92951.0,0.00013561]
[1745360694436,0.21325265,92952.0,92951.0,0.00013561]
[1745360694564,0.20825265,92952.0,92951.0,0.00013561]
[1745360694749,0.20225265,92952.0,92951.0,0.00013561]
[1745360694959,0.20725265,92952.0,92951.0,0.00013561]
[1745360695314,0.21025265,92952.0,92951.0,0.00013561]
[1745360695532,0.21225265,92952.0,92951.0,0.00013561]
[1745360695882,0.21625265,92952.0,92951.0,0.00013561]
[1745360696695,0.20225265,92952.0,92951.0,0.00013561]
[1745360696882,0.20625265,92952.0,92951.0,0.00013561]
[1745360697094,0.21025265,92952.0,92951.0,0.00013561]
[1745360697237,0.1019496,92952.0,92951.0,0.00013561]
[1745360697668,0.0615496,92952.0,92951.0,0.00013561]
[1745360698076,0.0108496,92952.0,92951.0,0.00013561]
[1745360698281,0.0058496,92952.0,92951.0,0.00013561]
[1745360699105,0.0088496,92952.0,92951.0,0.00013561]
[1745360701500,0.0087416,92952.0,92941.0,0.21519028]
[1745360701724,0.0087416,92952.0,92946.0,0.0001128]
[1745360702275,0.0087416,92952.0,92946.0,0.01087173]
[1745360702545,0.0087416,92952.0,92946.0,0.0001128]
[1745360702739,0.0057416,92952.0,92946.0,0.0001128]
[1745360703115,0.0007416,92952.0,92947.0,0.01075881]
[1745360703528,0.049,92960.0,92947.0,0.01075881]
[1745360703742,0.049,92960.0,92959.0,0.21514861]
[1745360704077,0.0004244,92962.0,92959.0,0.01075743]
[1745360704316,0.0004244,92962.0,92960.0,0.21514629]
[1745360705014,0.0004244,92962.0,92956.0,0.01075777]
[1745360705015,0.0004244,92962.0,92956.0,0.22591332]
[1745360705255,0.006,92960.0,92959.0,0.01175743]
[1745360705486,0.0004244,92962.0,92959.0,0.01075743]
[1745360705718,0.0004244,92962.0,92951.0,0.21516616]
[1745360705949,0.0004244,92962.0,92936.0,0.22844862]
[1745360705950,0.01075743,92959.0,92936.0,0.01324877]
[1745360706192,0.20470305,92958.0,92938.0,0.01075986]
[1745360706420,0.21143169,92958.0,92937.0,0.01075997]
[1745360706655,0.21143169,92958.0,92938.0,0.01075986]
[1745360706883,0.21143169,92958.0,92939.0,0.01075974]
[1745360707354,0.21143169,92958.0,92941.0,0.01075951]
[1745360707849,0.21343169,92958.0,92939.0,0.01075974]
[1745360708326,0.21343169,92958.0,92940.0,0.01075962]
[1745360708559,0.21543169,92958.0,92940.0,0.0179963]
[1745360708784,0.21343169,92958.0,92940.0,0.00723668]
[1745360708983,0.21143169,92958.0,92940.0,0.00723668]
[1745360709159,0.21143169,92958.0,92937.0,9.665e-05]
[1745360709317,0.21143169,92958.0,92937.0,0.01085662]
[1745360709519,0.21143169,92958.0,92940.0,0.01075962]
[1745360709833,0.21243169,92958.0,92941.0,0.01075951]
[1745360710006,0.21143169,92958.0,92939.0,0.01075974]
[1745360710844,0.21143169,92958.0,92940.0,0.00724368]
[1745360711425,0.01075766,92957.0,92940.0,0.00724368]
[1745360711632,0.0484,92949.0,92940.0,0.00724368]
[1745360711862,0.21519722,92938.0,92937.0,9.665e-05]
[1745360712042,0.0484,92928.0,92896.0,0.01076472]
[1745360712242,0.10830305,92927.0,92905.0,0.01315097]
[1745360712447,0.0474,92926.0,92913.0,0.00098319]
[1745360712647,0.01076182,92921.0,92913.0,0.00098319]
[1745360712845,0.0484,92919.0,92913.0,0.00098319]
[1745360713204,0.27704174,92918.0,92913.0,0.00098319]
[1745360714031,0.28780391,92918.0,92913.0,0.00098319]
[1745360714231,0.0484,92915.0,92913.0,0.00098319]
[1745360714427,0.0484,92908.0,92903.0,0.0008478]
[1745360714668,0.10830305,92907.0,92906.0,0.00104821]
[1745360714880,0.11452241,92907.0,92906.0,0.00104821]
[1745360716284,0.12052241,92907.0,92906.0,0.00104821]
[1745360716998,0.11430305,92907.0,92906.0,0.00104821]
[1745360717611,0.11730305,92907.0,92906.0,0.00104821]
[1745360719765,0.11730305,92907.0,92884.0,0.00766212]
[1745360719971,0.11830305,92907.0,92884.0,0.00771041]
[1745360720167,0.11830305,92907.0,92890.0,0.01076542]
[1745360720780,0.11830305,92907.0,92891.0,0.0107653]
[1745360720980,0.11530305,92907.0,92888.0,0.01076565]
[1745360721208,0.10930305,92907.0,92889.0,0.01076553]
[1745360721429,0.11030305,92907.0,92887.0,0.01076576]
[1745360721629,0.11030305,92907.0,92889.0,0.01076553]
[1745360721918,0.10930305,92907.0,92889.0,0.01076553]
[1745360723081,0.10930305,92907.0,92889.0,0.01376553]
[1745360723497,0.1618,92906.0,92889.0,0.003]
[1745360723790,0.10830305,92905.0,92889.0,0.003]
[1745360723934,0.1618,92904.0,92889.0,0.01376553]
[1745360724141,0.10830305,92903.0,92889.0,0.003]
[1745360724339,0.10830305,92903.0,92887.0,0.01076576]
[1745360724597,0.10830305,92903.0,92889.0,0.003]
[1745360725105,0.10830305,92903.0,92887.0,0.01076576]
[1745360725418,0.10830305,92903.0,92887.0,0.01376576]
[1745360725622,0.10830305,92903.0,92889.0,0.01076553]
[1745360725778,0.10830305,92903.0,92888.0,0.01076565]
[1745360725979,0.10830305,92903.0,92889.0,0.01076553]
[1745360726179,0.10830305,92903.0,92888.0,0.01076565]
[1745360726368,0.10830305,92903.0,92887.0,0.003]
[1745360726809,0.10830305,92903.0,92887.0,0.01376576]
[1745360727241,0.10830305,92903.0,92887.0,0.01076576]
[1745360727439,0.10830305,92903.0,92889.0,0.003]
[1745360728046,0.10830305,92903.0,92888.0,0.01076565]
[1745360728251,0.10830305,92903.0,92887.0,0.003]
[1745360728671,0.10830305,92903.0,92887.0,0.01076576]
[1745360729007,0.10830305,92903.0,92889.0,0.003]
[1745360729206,0.01076414,92901.0,92889.0,0.003]
[1745360729484,0.0483,92897.0,92889.0,0.003]
[1745360729650,0.10830305,92896.0,92889.0,0.003]
[1745360730605,0.10830305,92896.0,92884.0,4.829e-05]
[1745360730828,0.11030305,92896.0,92887.0,0.003]
[1745360731446,0.11030305,92896.0,92884.0,4.829e-05]
[1745360731644,0.10930305,92896.0,92884.0,0.00304829]
[1745360731846,0.11030305,92896.0,92884.0,0.00304829]
[1745360732247,0.11030305,92896.0,92884.0,4.829e-05]
[1745360732449,0.11030305,92896.0,92887.0,0.002]
[1745360733399,0.10930305,92896.0,92887.0,0.002]
[1745360733574,0.10930305,92896.0,92884.0,4.829e-05]
[1745360733575,0.01076495,92894.0,92884.0,4.829e-05]
[1745360733732,0.01076542,92890.0,92884.0,4.829e-05]
[1745360734156,0.10830305,92885.0,92884.0,4.829e-05]
[1745360734327,0.01076704,92876.0,92867.0,0.00074429]
[1745360734530,0.27010305,92875.0,92867.0,0.00121319]
[1745360734732,0.27010305,92875.0,92847.0,0.05945778]
[1745360734930,0.28087021,92875.0,92848.0,0.01087227]
[1745360735147,0.27010305,92875.0,92848.0,0.22627598]
[1745360735437,0.27010305,92875.0,92848.0,0.23883267]
[1745360735777,0.28087021,92875.0,92849.0,0.01077017]
[1745360736230,0.27010305,92875.0,92850.0,0.01077005]
[1745360736682,0.27010305,92875.0,92858.0,0.01076913]
[1745360736973,0.27010305,92875.0,92855.0,0.01076947]
[1745360737115,0.27110305,92875.0,92854.0,0.22615928]
[1745360737323,0.27110305,92875.0,92854.0,0.01076959]
[1745360737728,0.27010305,92875.0,92861.0,0.01076878]
[1745360738050,0.27110305,92875.0,92858.0,0.01076913]
[1745360738252,0.27010305,92875.0,92861.0,0.01076878]
[1745360738453,0.27010305,92875.0,92860.0,0.01076889]
[1745360738814,0.27010305,92875.0,92857.0,0.01076924]
[1745360739010,0.27010305,92875.0,92859.0,0.01076901]
[1745360739214,0.27010305,92875.0,92857.0,0.01076924]
[1745360739417,0.27010305,92875.0,92856.0,0.01076936]
[1745360740298,0.27010305,92875.0,92857.0,0.00724482]
[1745360740299,0.27110305,92875.0,92857.0,0.00724482]
[1745360740470,0.1628,92875.0,92869.0,0.22612378]
[1745360740668,0.1638,92875.0,92871.0,0.01076762]
[1745360740872,0.1638,92875.0,92868.0,0.01076797]
[1745360741076,0.1638,92875.0,92870.0,0.01076773]
[1745360741279,0.1638,92875.0,92866.0,0.0107682]
[1745360741502,0.1618,92875.0,92867.0,0.01076808]
[1745360741692,0.1618,92875.0,92867.0,0.00725589]
[1745360741948,0.10830305,92874.0,92867.0,0.00725589]
[1745360742173,0.048,92873.0,92852.0,0.01076982]
[1745360742344,0.10830305,92872.0,92849.0,0.22617328]
[1745360742992,0.10830305,92872.0,92850.0,0.01803027]
[1745360743330,0.10830305,92872.0,92851.0,0.01076994]
[1745360743531,0.10830305,92872.0,92857.0,0.01076924]
[1745360743730,0.10830305,92872.0,92862.0,0.01076866]
[1745360743932,0.10830305,92872.0,92861.0,0.22614221]
[1745360744112,0.1618,92875.0,92863.0,0.21537103]
[1745360744314,0.10830305,92874.0,92868.0,0.01076797]
[1745360744540,0.10830305,92874.0,92866.0,0.0107682]
[1745360744744,0.10830305,92874.0,92868.0,0.01076797]
[1745360744948,0.10830305,92874.0,92867.0,0.00726022]
[1745360744949,0.001,92872.0,92867.0,0.00726022]
[1745360745258,0.001,92872.0,92868.0,0.01076797]
[1745360745399,0.001,92872.0,92867.0,0.0180283]
[1745360745599,0.001,92872.0,92867.0,0.00726022]
[1745360746043,0.001,92872.0,92868.0,0.00726022]
[1745360746248,0.10830305,92874.0,92868.0,0.00726022]
[1745360746454,0.002,92872.0,92868.0,0.00726022]
[1745360746667,0.002,92872.0,92869.0,0.01076785]
[1745360747093,0.005,92872.0,92870.0,0.00726022]
[1745360747301,0.16116,92871.0,92870.0,0.00726022]
[1745360748471,0.14825164,92871.0,92870.0,0.00726022]
[1745360748679,0.25655469,92871.0,92870.0,0.00726022]
[1745360749723,0.26355469,92871.0,92870.0,0.00726022]
[1745360758920,0.30855469,92871.0,92870.0,0.00726022]
[1745360759163,0.35765469,92871.0,92870.0,0.00726022]
[1745360759873,0.35765469,92871.0,92848.0,0.02368277]
[1745360760070,0.10830305,92870.0,92848.0,0.02368277]
[1745360760434,0.10830305,92870.0,92848.0,0.01291248]
[1745360760643,0.21536802,92865.0,92849.0,0.00726853]
[1745360760901,0.01076855,92863.0,92849.0,0.00726853]
[1745360761149,0.10830305,92862.0,92849.0,0.00726853]
[1745360761300,0.01076878,92861.0,92849.0,0.00726853]
[1745360761497,0.10830305,92860.0,92850.0,0.00726853]
[1745360761699,0.21539671,92852.0,92850.0,0.00726853]
[1745360761905,0.15330305,92851.0,92850.0,0.00726853]
[1745360762112,0.21540118,92850.0,92848.0,0.00510198]
[1745360762267,0.10830305,92849.0,92848.0,0.00510198]
[1745360762693,0.10830305,92849.0,92848.0,0.00010198]
[1745360763273,0.10830305,92849.0,92848.0,0.00310198]
[1745360763676,0.004,92849.0,92848.0,0.00110198]
[1745360763871,0.004,92849.0,92848.0,0.00937191]
[1745360763872,0.008,92849.0,92848.0,0.00937191]
[1745360764968,0.004,92849.0,92848.0,0.00837191]
[1745360765172,0.008,92849.0,92848.0,0.00937191]
[1745360765632,0.008,92849.0,92848.0,0.01252589]
[1745360765969,0.008,92849.0,92848.0,0.01037191]
[1745360766164,0.004,92849.0,92848.0,0.00937191]
[1745360766380,0.001,92860.0,92855.0,0.01076947]
[1745360766627,0.001,92860.0,92856.0,0.01076936]
[1745360767471,0.001,92860.0,92857.0,0.00726993]
[1745360768531,0.001,92860.0,92858.0,0.00726993]
[1745360769667,0.001,92860.0,92859.0,0.00726993]
[1745360769951,0.002,92860.0,92859.0,0.00726993]
[1745360770335,0.001,92860.0,92859.0,0.00726993]
[1745360770738,0.003,92860.0,92859.0,0.00726993]
[1745360771336,0.11130305,92860.0,92859.0,0.00726993]
[1745360772000,0.15840305,92860.0,92859.0,0.00826993]
[1745360772215,0.20440305,92860.0,92859.0,0.00826993]
[1745360772570,0.20440305,92860.0,92848.0,0.00110198]
[1745360772773,0.10830305,92859.0,92848.0,0.00110198]
[1745360773783,0.10830305,92859.0,92849.0,0.00727922]
[1745360774375,0.10830305,92859.0,92850.0,0.00727922]
[1745360775595,0.10830305,92859.0,92850.0,0.00827922]
[1745360775819,0.10830305,92859.0,92850.0,0.00927922]
[1745360776042,0.01076947,92855.0,92850.0,0.00927922]
[1745360776379,0.10830305,92854.0,92850.0,0.00927922]
[1745360776576,0.10830305,92854.0,92850.0,0.002]
[1745360776926,0.10830305,92854.0,92848.0,0.00110198]
[1745360777122,0.10830305,92854.0,92850.0,0.001]
[1745360777670,0.10830305,92854.0,92848.0,0.00110198]
[1745360778020,0.10830305,92854.0,92848.0,0.00310198]
[1745360778233,0.10830305,92854.0,92849.0,0.0072796]
[1745360779698,0.10830305,92854.0,92849.0,0.0082796]
[1745360780314,0.10830305,92854.0,92850.0,0.0072796]
[1745360781185,0.10830305,92854.0,92849.0,0.001]
[1745360781908,0.10830305,92854.0,92850.0,0.001]
[1745360782706,0.16036,92853.0,92850.0,0.001]
[1745360782906,0.10830305,92852.0,92850.0,0.001]
[1745360783407,0.10830305,92852.0,92848.0,0.00110198]
[1745360783862,0.10830305,92852.0,92849.0,0.002]
[1745360784264,0.10830305,92852.0,92850.0,0.00727979]
[1745360785190,0.10830305,92852.0,92848.0,0.00110198]
[1745360785396,0.10830305,92852.0,92850.0,0.001]
[1745360786508,0.10830305,92852.0,92848.0,0.00110198]
[1745360786649,0.01076994,92851.0,92848.0,0.00110198]
[1745360786889,0.10830305,92850.0,92848.0,0.00310198]
[1745360787499,0.10830305,92850.0,92848.0,0.00110198]
[1745360787700,0.32370489,92850.0,92848.0,0.00110198]
[1745360787912,0.32370489,92850.0,92848.0,0.00310198]
[1745360788343,0.32370489,92850.0,92848.0,0.00110198]
[1745360788555,0.0499,92849.0,92848.0,0.00210198]
[1745360788738,0.15820305,92849.0,92848.0,0.00210198]
[1745360789195,0.15820305,92849.0,92848.0,0.00110198]
[1745360789393,0.15820305,92849.0,92848.0,0.00210198]
[1745360789542,0.20510305,92849.0,92848.0,0.00210198]
[1745360789746,0.20510305,92849.0,92848.0,0.00310198]
[1745360790149,0.20510305,92849.0,92848.0,0.00110198]
[1745360790353,0.20810305,92849.0,92848.0,0.00210198]
[1745360790962,0.20510305,92849.0,92848.0,0.00110198]
[1745360791170,0.20510305,92849.0,92848.0,0.00210198]
[1745360791171,0.21010305,92849.0,92848.0,0.00210198]
[1745360791573,0.21010305,92849.0,92848.0,0.00110198]
[1745360791995,0.21510305,92849.0,92848.0,0.00210198]
[1745360796816,0.16520305,92849.0,92848.0,0.00210198]
[1745360797576,0.11830305,92849.0,92848.0,0.00210198]
[1745360806235,0.27782305,92849.0,92848.0,0.00210198]
[1745360811881,0.3889639,92849.0,92848.0,0.00210198]
[1745360812191,0.22998147,92833.0,92832.0,0.0004243]
[1745360812399,0.43488452,92833.0,92832.0,0.00055962]
[1745360814425,0.44188452,92833.0,92832.0,0.00155962]
[1745360814627,0.44988452,92833.0,92832.0,0.00255962]
[1745360814834,0.45779331,92833.0,92832.0,0.00255962]
[1745360815735,0.22781184,92833.0,92832.0,0.00255962]
[1745360816319,0.38733184,92833.0,92832.0,0.00255962]
[1745360818892,0.38733184,92833.0,92805.0,0.01077528]
[1745360819084,0.11907531,92831.0,92813.0,0.00011781]
[1745360819502,0.1348566,92831.0,92813.0,0.00011781]
[1745360819668,0.01077272,92827.0,92813.0,0.00011781]
[1745360819844,0.11907589,92826.0,92813.0,0.00011781]
[1745360820045,0.10830305,92826.0,92813.0,0.00011781]
[1745360820255,0.01077307,92824.0,92813.0,0.00011781]
[1745360820479,0.05887377,92818.0,92813.0,0.00011781]
[1745360820679,0.21548241,92815.0,92813.0,0.00011781]
[1745360820902,0.10830305,92814.0,92813.0,0.00111781]
[1745360821595,0.10830305,92814.0,92813.0,0.00011781]
[1745360821798,0.10830305,92814.0,92813.0,0.00111781]
[1745360822156,0.10830305,92814.0,92813.0,0.00011781]
[1745360822610,0.11130305,92814.0,92813.0,0.00111781]
[1745360823410,0.11430305,92814.0,92813.0,0.00211781]
[1745360825438,0.006,92814.0,92813.0,0.00211781]
[1745360825659,0.16556,92814.0,92813.0,0.23445259]
[1745360825832,0.16556,92814.0,92813.0,0.24173277]
[1745360826047,0.006,92814.0,92813.0,0.24173277]
[1745360826449,0.006,92814.0,92813.0,0.02624572]
[1745360827277,0.15956,92820.0,92817.0,0.01077388]
[1745360828061,0.15956,92820.0,92818.0,0.21547544]
[1745360828484,0.16056,92820.0,92818.0,0.21547544]
[1745360828631,0.16156,92820.0,92818.0,0.21547544]
[1745360828834,0.16056,92820.0,92819.0,0.00727964]
[1745360829251,0.16156,92820.0,92819.0,0.00727964]
[1745360829673,0.16056,92820.0,92819.0,0.00727964]
[1745360830402,0.15956,92820.0,92819.0,0.00727964]
[1745360830550,0.16056,92820.0,92819.0,0.01027964]
[1745360831416,0.001,92820.0,92819.0,0.01027964]
[1745360831551,0.15956,92831.0,92826.0,0.01077284]
[1745360831972,0.15956,92831.0,92823.0,0.01077319]
[1745360831973,0.15956,92831.0,92825.0,0.01077295]
[1745360832572,0.15956,92831.0,92827.0,0.01077272]
[1745360832971,0.15956,92831.0,92826.0,0.01077284]
[1745360833177,0.15956,92831.0,92825.0,0.01077295]
[1745360833510,0.15956,92831.0,92823.0,0.00538191]
[1745360833722,0.15956,92831.0,92827.0,0.01077272]
[1745360833923,0.15956,92831.0,92825.0,0.01077295]
[1745360834102,0.16056,92831.0,92826.0,0.002]
[1745360834301,0.16056,92831.0,92826.0,0.01277284]
[1745360834504,0.16056,92831.0,92829.0,0.21544991]
[1745360834731,0.15956,92831.0,92824.0,0.01077307]
[1745360835026,0.15956,92831.0,92827.0,0.01177272]
[1745360835255,0.15956,92831.0,92828.0,0.01805299]
[1745360835388,0.15956,92831.0,92828.0,0.00728038]
[1745360835584,0.15956,92831.0,92828.0,0.01805299]
[1745360835789,0.15956,92831.0,92823.0,0.22184343]
[1745360836013,0.15956,92831.0,92823.0,0.22084343]
[1745360836216,0.15956,92831.0,92828.0,0.01077261]
[1745360836830,0.16056,92831.0,92828.0,0.01077261]
[1745360837030,0.16056,92831.0,92828.0,0.001]
[1745360838397,0.16056,92831.0,92828.0,0.01177261]
[1745360838684,0.16056,92831.0,92828.0,0.001]
[1745360839155,0.16056,92831.0,92828.0,0.01177261]
[1745360839691,0.16056,92831.0,92828.0,0.001]
[1745360841452,0.16056,92831.0,92828.0,0.01177261]
[1745360841681,0.16056,92831.0,92829.0,0.21544991]
[1745360842546,0.15956,92831.0,92829.0,0.21544991]
[1745360842875,0.16056,92831.0,92829.0,0.21544991]
[1745360843056,0.16056,92831.0,92830.0,0.0475]
[1745360843422,0.001,92831.0,92830.0,0.0475]
[1745360843875,0.001,92831.0,92829.0,0.21544991]
[1745360844053,0.001,92831.0,92829.0,0.21744991]
[1745360844640,22.56,92833.0,92832.0,0.21544295]
[1745360845099,22.56,92833.0,92830.0,0.01277237]
[1745360845305,22.56,92833.0,92830.0,0.002]
[1745360845481,22.56,92833.0,92830.0,0.003]
[1745360845630,22.56,92833.0,92830.0,0.002]
[1745360846073,22.56,92833.0,92827.0,0.01077272]
[1745360846275,22.56,92833.0,92826.0,0.01077284]
[1745360846476,0.001,92831.0,92829.0,0.002]
[1745360846676,0.001,92831.0,92830.0,0.001]
[1745360846883,22.56,92833.0,92830.0,0.001]
[1745360847028,22.56,92833.0,92827.0,0.002]
[1745360847491,22.56,92833.0,92827.0,0.004]
[1745360847663,22.56,92833.0,92827.0,0.002]
[1745360847878,22.56,92833.0,92830.0,0.001]
[1745360848479,22.56,92833.0,92831.0,0.00729101]
[1745360848884,22.56,92833.0,92832.0,0.00729101]
[1745360849445,22.561,92833.0,92832.0,0.00729101]
[1745360849646,22.561,92833.0,92827.0,0.002]
[1745360849962,22.56,92833.0,92831.0,0.001]
[1745360850221,22.56,92833.0,92832.0,0.001]
[1745360850726,22.56,92833.0,92818.0,0.22624802]
[1745360850899,22.56,92833.0,92827.0,0.002]
[1745360850900,22.561,92833.0,92827.0,0.002]
[1745360851512,22.561,92833.0,92828.0,0.00729299]
[1745360852192,22.56,92833.0,92829.0,0.00729299]
[1745360852397,22.56,92833.0,92832.0,0.001]
[1745360852578,0.21544759,92830.0,92829.0,0.00076389]
[1745360852776,0.15710305,92830.0,92829.0,0.00076389]
[1745360853030,22.56,92833.0,92829.0,0.00076389]
[1745360853241,22.561,92833.0,92829.0,0.002]
[1745360853786,22.56,92833.0,92822.0,0.0107733]
[1745360853985,22.56,92833.0,92827.0,0.002]
[1745360854214,22.56,92833.0,92829.0,0.001]
[1745360855248,22.56,92833.0,92820.0,0.27514905]
[1745360855673,22.561,92833.0,92820.0,0.03936245]
[1745360856158,22.56,92833.0,92820.0,0.05013599]
[1745360856378,22.561,92833.0,92820.0,0.05313599]
[1745360856616,22.561,92833.0,92821.0,0.01077342]
[1745360856829,22.562,92833.0,92821.0,0.01077342]
[1745360857044,22.562,92833.0,92820.0,0.05613599]
[1745360857802,22.562,92833.0,92820.0,0.04536245]
[1745360857999,22.562,92833.0,92820.0,0.05613599]
[1745360858174,22.561,92833.0,92820.0,0.05313599]
[1745360858390,22.56,92833.0,92821.0,0.002]
[1745360858597,22.562,92833.0,92822.0,0.0107733]
[1745360858875,22.562,92833.0,92821.0,0.01477342]
[1745360859091,22.563,92833.0,92821.0,0.004]
[1745360859494,22.561,92833.0,92820.0,0.04236245]
[1745360859666,22.562,92833.0,92820.0,0.04336245]
[1745360859875,22.561,92833.0,92820.0,0.04036245]
[1745360860065,22.56,92833.0,92822.0,0.0107733]
[1745360860281,22.561,92833.0,92822.0,0.0107733]
[1745360860451,22.561,92833.0,92823.0,0.01077319]
[1745360860646,22.561,92833.0,92821.0,0.21646848]
[1745360860647,22.561,92833.0,92821.0,0.001]
[1745360861778,22.562,92833.0,92821.0,0.001]
[1745360861959,22.56,92833.0,92820.0,0.01077354]